bitfinex/quotes_BTCUSD_20230114
["timestamp","ask_amount","ask_price","bid_price","bid_amount"]
[1673725716991,3.79459928,20817.0,20816.0,0.00453835]
[1673725719090,3.20379928,20817.0,20816.0,0.00453835]
[1673725721060,3.10379928,20817.0,20816.0,0.00453835]
[1673725721303,3.20379928,20817.0,20816.0,0.00453835]
[1673725721562,3.67790145,20817.0,20816.0,0.00453835]
[1673725722824,3.56280145,20817.0,20816.0,0.00453835]
[1673725723314,3.56280145,20817.0,20816.0,0.00408452]
[1673725724568,3.67820145,20817.0,20816.0,0.00408452]
[1673725725763,3.57820145,20817.0,20816.0,0.00408452]
[1673725726253,3.10409928,20817.0,20816.0,0.00408452]
[1673725726522,3.30637778,20817.0,20816.0,0.32502047]
[1673725726791,3.30637778,20817.0,20816.0,0.59101073]
[1673725726792,1.36889162,20817.0,20816.0,0.59101073]
[1673725727046,1.36889162,20817.0,20816.0,0.40028478]
[1673725727047,1.75085152,20817.0,20816.0,0.40028478]
[1673725727292,0.134,20817.0,20816.0,0.46385387]
[1673725727540,0.134,20817.0,20816.0,0.33364387]
[1673725727541,0.49352955,20817.0,20816.0,0.33364387]
[1673725727783,0.134,20817.0,20816.0,0.33364387]
[1673725729269,0.86543796,20817.0,20816.0,0.27007478]
[1673725730245,0.434,20817.0,20816.0,0.27007478]
[1673725730519,0.86543796,20817.0,20816.0,0.00408452]
[1673725730810,0.434,20817.0,20816.0,0.00408452]
[1673725731052,0.434,20817.0,20816.0,0.05736539]
[1673725731307,0.134,20817.0,20816.0,0.31647207]
[1673725731561,0.49351491,20817.0,20816.0,0.31647207]
[1673725732556,0.49351491,20817.0,20816.0,1.02767107]
[1673725732822,0.49351491,20817.0,20816.0,1.34762807]
[1673725732823,0.63720966,20817.0,20816.0,1.34762807]
[1673725733081,0.63720966,20817.0,20816.0,1.82802707]
[1673725734059,0.49342467,20817.0,20816.0,1.82802707]
[1673725734814,0.27776431,20817.0,20816.0,1.82802707]
[1673725736559,0.134,20817.0,20816.0,1.86072094]
[1673725737063,0.134,20817.0,20816.0,2.91626113]
[1673725737571,0.14376431,20820.0,20816.0,2.91626113]
[1673725737820,0.14376431,20820.0,20819.0,0.2306]
[1673725738072,0.35942467,20821.0,20819.0,1.030836]
[1673725738335,0.35942467,20821.0,20820.0,0.434954]
[1673725738585,0.64706421,20822.0,20820.0,1.22108695]
[1673725738586,0.35942467,20822.0,20820.0,1.22108695]
[1673725738838,0.14376431,20822.0,20821.0,0.550374]
[1673725739089,0.35942467,20823.0,20821.0,1.31416647]
[1673725739349,0.35942467,20823.0,20822.0,0.434931]
[1673725739595,0.14376431,20823.0,20822.0,0.2308]
[1673725739866,0.14376431,20823.0,20822.0,0.36371711]
[1673725740142,0.35942467,20824.0,20822.0,0.84397811]
[1673725740394,0.14376431,20824.0,20823.0,0.1152]
[1673725740673,0.35942467,20824.0,20823.0,0.57699799]
[1673725741353,0.14376431,20824.0,20823.0,0.57699799]
[1673725741849,0.14351931,20824.0,20823.0,0.57699799]
[1673725742094,0.27751931,20824.0,20823.0,0.57699799]
[1673725743122,0.134,20824.0,20823.0,0.30139818]
[1673725743373,0.134,20824.0,20823.0,1.191076]
[1673725743625,0.134,20824.0,20823.0,2.16427374]
[1673725745171,0.0135925,20826.0,20823.0,2.85537374]
[1673725745442,0.0135925,20826.0,20823.0,1.49841674]
[1673725745693,0.0135925,20826.0,20825.0,0.3462]
[1673725745946,0.0135925,20826.0,20825.0,2.27344606]
[1673725746201,0.34902645,20830.0,20826.0,0.1]
[1673725746450,0.34998757,20830.0,20829.0,0.3442]
[1673725746703,0.34998757,20830.0,20829.0,2.27140169]
[1673725746953,0.34998757,20830.0,20829.0,0.433517]
[1673725746954,0.34902645,20830.0,20829.0,0.433517]
[1673725747936,0.35702645,20830.0,20829.0,0.433517]
[1673725748216,0.34902645,20830.0,20829.0,0.433517]
[1673725748473,0.48302645,20830.0,20829.0,0.4883087]
[1673725748911,0.48302645,20830.0,20829.0,0.433517]
[1673725749128,0.48302645,20830.0,20829.0,0.2296]
[1673725749386,0.96310245,20830.0,20829.0,0.2296]
[1673725750716,0.48302645,20830.0,20829.0,0.4819691]
[1673725750971,0.48302645,20830.0,20829.0,0.8019261]
[1673725751243,0.48302645,20830.0,20829.0,0.89355871]
[1673725759205,0.48302645,20830.0,20829.0,0.77935871]
[1673725760442,0.48302645,20830.0,20829.0,0.45940171]
[1673725760681,0.48302645,20830.0,20829.0,0.77935871]
[1673725761239,0.14235218,20840.0,20832.0,0.95722869]
[1673725761542,0.00057807,20843.0,20832.0,0.95722869]
[1673725761543,0.00057807,20843.0,20836.0,1.07720169]
[1673725761811,0.35951491,20849.0,20836.0,1.07720169]
[1673725761812,0.23802132,20846.0,20838.0,0.47720169]
[1673725762071,0.0009748,20840.0,20839.0,0.69444995]
[1673725762360,0.0001,20850.0,20842.0,0.00239636]
[1673725762609,0.0001,20850.0,20843.0,0.66792764]
[1673725762858,0.01997824,20859.0,20845.0,1.439187]
[1673725762859,0.54378266,20859.0,20845.0,1.439187]
[1673725763120,0.02436,20858.0,20846.0,0.66874198]
[1673725763387,0.02456,20860.0,20853.0,0.11381625]
[1673725763649,0.00097972,20859.0,20856.0,0.1154]
[1673725763897,0.13976,20862.0,20857.0,0.19072595]
[1673725764139,0.47720169,20861.0,20858.0,0.19072595]
[1673725764384,0.29235582,20861.0,20859.0,0.19072595]
[1673725764637,0.02436,20865.0,20860.0,0.434857]
[1673725764948,0.10012691,20866.0,20859.0,0.2141]
[1673725765205,0.10012691,20866.0,20861.0,0.67008595]
[1673725765206,0.00098893,20864.0,20861.0,0.67008595]
[1673725765456,0.2687709,20866.0,20862.0,0.50856695]
[1673725765457,0.28045152,20866.0,20862.0,0.50856695]
[1673725765724,0.13120664,20866.0,20865.0,0.708865]
[1673725766005,0.13120664,20866.0,20862.0,0.594224]
[1673725766006,0.04804664,20872.0,20862.0,0.594224]
[1673725766279,0.04804664,20872.0,20861.0,0.47936]
[1673725766280,0.02236,20868.0,20863.0,0.19072595]
[1673725766537,0.20271943,20872.0,20864.0,0.66792764]
[1673725766788,0.02236,20867.0,20865.0,0.19072595]
[1673725767045,0.02236,20867.0,20860.0,0.2272629]
[1673725767046,0.02236,20867.0,20859.0,0.23371834]
[1673725767286,0.15467279,20866.0,20861.0,0.26662438]
[1673725767582,0.15467279,20865.0,20859.0,0.25570759]
[1673725767816,0.15467279,20865.0,20860.0,0.23408112]
[1673725768063,0.15467279,20864.0,20858.0,0.25795801]
[1673725768323,0.1149,20862.0,20854.0,0.27533278]
[1673725768569,0.02236,20859.0,20855.0,0.23809558]
[1673725768818,0.15467279,20858.0,20855.0,0.23809558]
[1673725769069,0.15467279,20858.0,20856.0,0.28966835]
[1673725769315,0.04804664,20859.0,20854.0,0.1149]
[1673725769556,0.04804664,20859.0,20855.0,0.2841673]
[1673725769557,0.47608333,20859.0,20855.0,0.2841673]
[1673725769804,0.45054408,20859.0,20855.0,0.21255302]
[1673725770053,0.21121239,20857.0,20855.0,0.21255302]
[1673725770559,0.20621239,20857.0,20855.0,0.21255302]
[1673725770805,0.23065682,20858.0,20855.0,0.21255302]
[1673725771055,0.0009682,20860.0,20856.0,0.26684001]
[1673725771298,0.0009682,20860.0,20856.0,0.19072595]
[1673725771299,0.27478158,20859.0,20856.0,0.19072595]
[1673725771552,0.24845121,20857.0,20855.0,0.32922553]
[1673725771806,0.28504618,20860.0,20857.0,0.28429724]
[1673725772046,0.0009682,20860.0,20858.0,0.19072595]
[1673725772300,0.21166264,20865.0,20859.0,0.73988295]
[1673725772552,0.00095568,20865.0,20862.0,0.1149]
[1673725772800,0.00095568,20865.0,20864.0,0.1149]
[1673725773051,0.14804664,20864.0,20853.0,0.1]
[1673725773306,0.958734,20861.0,20853.0,0.19072595]
[1673725773594,0.02236,20859.0,20848.0,0.9715]
[1673725773842,0.02236,20859.0,20851.0,0.1149]
[1673725773843,0.958964,20856.0,20851.0,0.1149]
[1673725774077,0.15467279,20855.0,20848.0,0.19072595]
[1673725774325,0.63421279,20854.0,20849.0,0.1149]
[1673725774570,0.39581818,20853.0,20849.0,0.1149]
[1673725774804,0.39581818,20853.0,20850.0,0.29541321]
[1673725775071,0.24114539,20853.0,20850.0,0.29541321]
[1673725775569,0.0009696,20854.0,20852.0,0.1149]
[1673725775823,0.0009696,20854.0,20853.0,0.431897]
[1673725776112,0.73028513,20859.0,20853.0,0.431897]
[1673725776391,0.00098405,20858.0,20855.0,0.0009696]
[1673725776618,0.28504337,20856.0,20855.0,0.19169555]
[1673725776867,0.28504337,20856.0,20855.0,0.0009696]
[1673725778100,1.03540414,20856.0,20847.0,0.2365145]
[1673725778351,0.1141,20854.0,20847.0,0.42724045]
[1673725778595,0.15467279,20853.0,20848.0,0.22133403]
[1673725778843,1.11381679,20852.0,20849.0,0.25044968]
[1673725779092,0.959144,20852.0,20849.0,0.25044968]
[1673725779333,0.479572,20852.0,20851.0,0.22131598]
[1673725779578,0.779572,20852.0,20849.0,0.24989864]
[1673725779828,0.24196035,20851.0,20849.0,0.24989864]
[1673725780073,0.72155835,20851.0,20848.0,0.114]
[1673725781326,0.72155835,20851.0,20847.0,0.25949912]
[1673725781567,0.87623114,20851.0,20847.0,0.25949912]
[1673725781826,0.3,20850.0,20846.0,0.1180775]
[1673725782083,0.63430979,20850.0,20846.0,0.37743903]
[1673725782569,0.63430979,20850.0,20846.0,0.1180775]
[1673725782820,0.26904634,20849.0,20846.0,0.1180775]
[1673725783075,0.74869034,20849.0,20846.0,0.1180775]
[1673725784059,0.74869034,20849.0,20846.0,0.35117885]
[1673725784307,0.00096872,20851.0,20848.0,0.1149]
[1673725784560,0.00096872,20851.0,20849.0,0.317109]
[1673725784807,0.28231281,20852.0,20850.0,0.319906]
[1673725785080,0.959063,20854.0,20849.0,0.1138]
[1673725785081,0.479558,20853.0,20849.0,0.1138]
[1673725785326,0.479558,20853.0,20849.0,0.30452595]
[1673725785573,0.28002355,20852.0,20849.0,0.52341469]
[1673725785832,0.75959655,20852.0,20849.0,0.1138]
[1673725786320,0.75959655,20852.0,20848.0,0.27787209]
[1673725786563,0.91426934,20852.0,20848.0,0.27787209]
[1673725787061,0.3,20851.0,20846.0,0.24119929]
[1673725787320,1.11392679,20850.0,20846.0,0.24119929]
[1673725787842,1.11392679,20850.0,20846.0,0.0031775]
[1673725788090,0.28272591,20849.0,20846.0,0.0031775]
[1673725788336,0.479662,20848.0,20846.0,0.0031775]
[1673725790336,0.27011814,20847.0,20846.0,0.0031775]
[1673725791340,0.1,20850.0,20846.0,0.5977855]
[1673725791587,0.33259434,20850.0,20847.0,0.56865791]
[1673725791835,0.23259434,20850.0,20848.0,0.319957]
[1673725792079,0.26666843,20849.0,20847.0,0.60978633]
[1673725792330,0.26666843,20849.0,20847.0,0.30416038]
[1673725792603,0.25407459,20849.0,20847.0,0.30416038]
[1673725792845,0.25407459,20849.0,20847.0,0.30163804]
[1673725793082,0.48058483,20851.0,20847.0,0.30163804]
[1673725793333,0.29258938,20851.0,20848.0,0.27180532]
[1673725793597,0.21362285,20850.0,20848.0,0.27180532]
[1673725794086,0.21362285,20850.0,20847.0,0.04112842]
[1673725795575,0.00098083,20851.0,20848.0,0.25380563]
[1673725795828,0.00098083,20851.0,20849.0,0.69550965]
[1673725796079,0.29749035,20853.0,20850.0,0.319957]
[1673725796333,0.27268184,20852.0,20850.0,0.19072595]
[1673725796613,0.27268184,20852.0,20849.0,0.69550965]
[1673725797155,0.28718474,20851.0,20849.0,0.69550965]
[1673725797399,0.21826589,20850.0,20847.0,0.04112842]
[1673725797665,0.37293868,20850.0,20847.0,0.25613453]
[1673725797910,0.21826589,20850.0,20847.0,0.25613453]
[1673725798957,0.69788389,20850.0,20847.0,0.25613453]
[1673725800294,1.17749989,20850.0,20847.0,0.25613453]
[1673725801067,0.21301256,20849.0,20847.0,0.25613453]
[1673725801323,0.479662,20848.0,20847.0,0.25613453]
[1673725801853,0.478987,20848.0,20847.0,0.25613453]
[1673725804014,0.478987,20848.0,20847.0,0.36108542]
[1673725804271,1.2078532,20848.0,20847.0,0.04112842]
[1673725807005,1.23168722,20848.0,20847.0,0.04112842]
[1673725807254,1.1842799,20848.0,20847.0,0.04112842]
[1673725807768,1.258649,20848.0,20847.0,0.04112842]
[1673725808033,1.50390253,20848.0,20847.0,0.04112842]
[1673725808798,1.20390253,20848.0,20847.0,0.04112842]
[1673725809293,1.50390253,20848.0,20847.0,0.04112842]
[1673725812583,0.479656,20849.0,20847.0,1.00067883]
[1673725812836,0.479635,20850.0,20848.0,0.319957]
[1673725813091,0.77280438,20851.0,20849.0,0.203292]
[1673725813338,0.29319338,20851.0,20850.0,0.95955041]
[1673725813590,0.29319338,20851.0,20848.0,0.95955041]
[1673725813835,0.29319338,20851.0,20849.0,0.95955041]
[1673725814083,0.62191318,20853.0,20850.0,0.95955041]
[1673725814333,0.62191318,20853.0,20850.0,0.44035277]
[1673725814334,0.91225906,20853.0,20850.0,0.44035277]
[1673725814845,1.12577825,20853.0,20850.0,0.24962682]
[1673725815098,0.28467803,20852.0,20850.0,0.24962682]
[1673725815349,0.28467803,20852.0,20851.0,0.95946824]
[1673725815599,0.28467803,20852.0,20850.0,0.24962682]
[1673725815862,0.42703021,20852.0,20850.0,0.24962682]
[1673725816379,0.35587137,20853.0,20850.0,0.72924282]
[1673725816875,0.40476056,20852.0,20850.0,0.24962682]
[1673725817123,0.35587137,20851.0,20850.0,0.24962682]
[1673725817383,0.35587137,20851.0,20847.0,0.04112842]
[1673725817638,0.51054416,20851.0,20849.0,0.27411813]
[1673725817882,0.35587137,20851.0,20849.0,0.27411813]
[1673725818149,0.14235218,20850.0,20849.0,0.27411813]
[1673725818409,0.35587137,20850.0,20849.0,0.27411813]
[1673725818662,0.35587137,20850.0,20849.0,0.25167191]
[1673725818920,0.35684929,20852.0,20849.0,1.27636664]
[1673725819203,0.00097792,20852.0,20850.0,1.93525654]
[1673725819439,0.00097792,20852.0,20851.0,1.88458453]
[1673725819687,0.35587137,20858.0,20851.0,3.50085883]
[1673725819952,0.00095553,20857.0,20854.0,0.1289]
[1673725820212,0.14330771,20857.0,20855.0,1.35291395]
[1673725820485,0.00095553,20857.0,20856.0,0.51058695]
[1673725820745,0.01921749,20859.0,20856.0,0.575261]
[1673725821029,0.01921749,20859.0,20858.0,0.1281]
[1673725821257,0.16156967,20859.0,20858.0,0.319826]
[1673725821512,0.51596743,20859.0,20856.0,0.479456]
[1673725821767,0.37614564,20859.0,20857.0,0.319957]
[1673725822045,0.37614564,20859.0,20858.0,0.20304]
[1673725822300,0.16262645,20859.0,20858.0,0.20304]
[1673725822554,0.66700343,20859.0,20858.0,0.20304]
[1673725822836,0.45348424,20859.0,20856.0,0.70232889]
[1673725823095,0.28783133,20858.0,20856.0,0.70232889]
[1673725823342,0.01921749,20859.0,20857.0,0.319957]
[1673725823607,0.01921749,20859.0,20858.0,0.203041]
[1673725824107,0.28320193,20859.0,20857.0,0.74477336]
[1673725824361,0.28320193,20859.0,20858.0,0.319957]
[1673725824857,0.28307997,20859.0,20858.0,0.203022]
[1673725825618,0.28307997,20859.0,20857.0,0.479453]
[1673725826095,0.28307997,20859.0,20858.0,0.319957]
[1673725826346,0.28307997,20859.0,20857.0,0.479453]
[1673725826859,0.28307997,20859.0,20858.0,0.319957]
[1673725827113,0.28307997,20859.0,20857.0,0.7081633]
[1673725827358,0.28307997,20859.0,20857.0,0.2287103]
[1673725827605,0.01909553,20859.0,20855.0,0.479501]
[1673725827855,0.01909553,20859.0,20854.0,0.479517]
[1673725827856,1.29843853,20859.0,20854.0,0.479517]
[1673725828124,0.15475304,20858.0,20853.0,1.7387317]
[1673725828374,0.15475304,20857.0,20853.0,0.479542]
[1673725828624,1.13607704,20856.0,20851.0,0.24211255]
[1673725828876,0.15475304,20855.0,20851.0,0.24211255]
[1673725829129,0.15475304,20854.0,20851.0,0.24211255]
[1673725829393,0.479547,20853.0,20851.0,0.24211255]
[1673725829648,0.479547,20853.0,20850.0,0.35587137]
[1673725829899,0.25684885,20852.0,20850.0,0.35587137]
[1673725830152,1.21601185,20852.0,20850.0,0.35587137]
[1673725832176,0.26609229,20851.0,20850.0,0.35587137]
[1673725832388,1.22527829,20851.0,20850.0,0.35587137]
[1673725832704,1.11393904,20851.0,20850.0,0.35587137]
[1673725832964,1.58716535,20851.0,20850.0,0.35587137]
[1673725833235,1.487886,20851.0,20850.0,0.35587137]
[1673725833491,1.63129496,20851.0,20850.0,0.35587137]
[1673725834252,1.487886,20851.0,20850.0,0.35587137]
[1673725834504,1.84481415,20851.0,20850.0,0.35587137]
[1673725835522,1.98324831,20851.0,20850.0,0.35587137]
[1673725836040,1.74448345,20851.0,20850.0,0.35587137]
[1673725836333,1.60701789,20851.0,20850.0,0.35587137]
[1673725836809,1.75009615,20851.0,20850.0,0.35587137]
[1673725837323,1.60701789,20851.0,20850.0,0.35587137]
[1673725838091,1.88096426,20851.0,20850.0,0.35587137]
[1673725838366,1.99670299,20851.0,20850.0,0.35587137]
[1673725840378,1.56800299,20851.0,20850.0,0.35587137]
[1673725840628,0.829593,20851.0,20850.0,0.35587137]
[1673725840878,0.35,20851.0,20850.0,0.35587137]
[1673725841651,0.35,20851.0,20850.0,0.59530645]
[1673725844147,0.35,20851.0,20850.0,0.35587137]
[1673725844657,0.61068294,20851.0,20850.0,0.35587137]
[1673725846165,1.09027594,20851.0,20850.0,0.35587137]
[1673725846407,0.61068294,20851.0,20850.0,0.35587137]
[1673725847632,0.35,20851.0,20850.0,0.61906006]
[1673725847880,0.35,20851.0,20850.0,1.89824906]
[1673725848411,0.35,20851.0,20850.0,2.37786506]
[1673725849719,0.35,20851.0,20850.0,1.63494271]
[1673725849963,1.28434604,20851.0,20850.0,0.35575371]
[1673725850226,1.53090255,20851.0,20850.0,0.35575371]
[1673725850476,1.83090255,20851.0,20850.0,0.35575371]
[1673725850762,1.53090255,20851.0,20850.0,0.35575371]
[1673725851033,1.83090255,20851.0,20850.0,0.35575371]
[1673725851585,1.97398081,20851.0,20850.0,0.35575371]
[1673725852601,2.1875,20851.0,20850.0,0.35575371]
[1673725852874,1.97398081,20851.0,20850.0,0.35575371]
[1673725853125,1.67398081,20851.0,20850.0,0.35575371]
[1673725853643,1.96578345,20851.0,20850.0,0.35575371]
[1673725853894,2.20449368,20851.0,20850.0,0.35575371]
[1673725854392,1.90449368,20851.0,20850.0,0.35575371]
[1673725854642,2.20449368,20851.0,20850.0,0.35575371]
[1673725855632,2.10454831,20851.0,20850.0,0.35575371]
[1673725856126,1.82270519,20851.0,20850.0,0.35575371]
[1673725856371,2.36619522,20851.0,20850.0,0.35575371]
[1673725856669,2.22753954,20851.0,20850.0,0.35575371]
[1673725856879,2.10737055,20851.0,20850.0,0.35575371]
[1673725857144,2.25055854,20851.0,20850.0,0.35575371]
[1673725857979,2.73015154,20851.0,20850.0,0.35575371]
[1673725859160,2.44548618,20851.0,20850.0,0.35575371]
[1673725859413,2.71706175,20851.0,20850.0,0.35575371]
[1673725859908,2.58414131,20851.0,20850.0,0.35575371]
[1673725860173,2.94020203,20851.0,20850.0,0.35575371]
[1673725860424,2.80435463,20851.0,20850.0,0.35575371]
[1673725861232,2.44829391,20851.0,20850.0,0.35575371]
[1673725862760,2.088779,20851.0,20850.0,0.35575371]
[1673725863007,2.44692634,20851.0,20850.0,0.35575371]
[1673725863510,2.70832579,20851.0,20850.0,0.35575371]
[1673725863757,0.98302164,20851.0,20850.0,0.35575371]
[1673725864004,2.20691806,20851.0,20850.0,0.35575371]
[1673725864477,2.2785467,20851.0,20850.0,0.35575371]
[1673725864714,2.35017845,20851.0,20850.0,0.35575371]
[1673725865450,3.00832579,20851.0,20850.0,0.35575371]
[1673725865710,2.65017845,20851.0,20850.0,0.35575371]
[1673725866202,2.35017845,20851.0,20850.0,0.35575371]
[1673725866718,2.36366412,20851.0,20850.0,0.35575371]
[1673725866967,2.42246462,20851.0,20850.0,0.35575371]
[1673725867189,2.36366412,20851.0,20850.0,0.35575371]
[1673725867453,2.06366412,20851.0,20850.0,0.35575371]
[1673725867702,2.088779,20851.0,20850.0,0.35575371]
[1673725867963,2.54257696,20851.0,20850.0,0.35575371]
[1673725868221,2.75451699,20851.0,20850.0,0.35575371]
[1673725868466,2.32307903,20851.0,20850.0,0.35563788]
[1673725868714,2.73165845,20851.0,20850.0,0.35563788]
[1673725869464,2.51971842,20851.0,20850.0,0.35563788]
[1673725869708,2.76130954,20851.0,20850.0,0.35563788]
[1673725870203,2.51971842,20851.0,20850.0,0.35563788]
[1673725870452,2.81489206,20851.0,20850.0,0.35563788]
[1673725872510,1.60435964,20851.0,20850.0,0.35563788]
[1673725873267,1.96347361,20851.0,20850.0,0.35563788]
[1673725873513,1.60435964,20851.0,20850.0,0.35563788]
[1673725874012,1.90435964,20851.0,20850.0,0.35563788]
[1673725875271,2.81489206,20851.0,20850.0,0.35563788]
[1673725875520,2.8987575,20851.0,20850.0,0.35563788]
[1673725875775,2.47457575,20851.0,20850.0,0.35563788]
[1673725876026,2.202679,20851.0,20850.0,0.35563788]
[1673725876529,2.197679,20851.0,20850.0,0.35563788]
[1673725877308,2.197679,20851.0,20847.0,0.04112842]
[1673725877309,2.82463373,20851.0,20847.0,0.04112842]
[1673725877601,0.68298291,20848.0,20847.0,0.04112842]
[1673725877850,2.81026181,20848.0,20847.0,0.04112842]
[1673725878151,2.470608,20848.0,20847.0,0.04112842]
[1673725878421,2.40354877,20848.0,20847.0,0.23185437]
[1673725878676,0.14359566,20848.0,20847.0,0.57147015]
[1673725878938,0.14359566,20848.0,20847.0,0.7007012]
[1673725879186,0.35899684,20849.0,20847.0,0.47608542]
[1673725879473,0.14359566,20849.0,20848.0,0.203319]
[1673725880252,0.35899684,20850.0,20848.0,0.203319]
[1673725880513,0.14455583,20852.0,20849.0,0.319925]
[1673725880770,0.00096017,20852.0,20850.0,0.303297]
[1673725881029,0.00096017,20852.0,20851.0,0.31989]
[1673725881290,0.70899684,20853.0,20851.0,0.31989]
[1673725881566,0.70899684,20853.0,20852.0,0.317176]
[1673725881813,0.70899684,20853.0,20852.0,0.203276]
[1673725882104,0.21540118,20853.0,20852.0,0.203276]
[1673725882354,0.21540118,20853.0,20848.0,0.54305986]
[1673725882355,0.596885,20853.0,20848.0,0.54305986]
[1673725882610,0.35882394,20851.0,20849.0,0.23891763]
[1673725882896,0.35882394,20851.0,20850.0,0.61218955]
[1673725883720,0.50235351,20851.0,20850.0,0.61218955]
[1673725883995,0.21529436,20851.0,20850.0,0.61218955]
[1673725884261,0.50235351,20851.0,20850.0,0.319957]
[1673725884520,0.50235351,20851.0,20849.0,0.29568537]
[1673725884771,0.14353628,20850.0,20849.0,0.29568537]
[1673725885030,0.14353628,20850.0,20849.0,0.61564237]
[1673725885558,0.35883064,20850.0,20847.0,0.04112842]
[1673725885841,0.14355525,20848.0,20847.0,0.04112842]
[1673725886372,0.35888812,20848.0,20847.0,0.04112842]
[1673725886882,0.9311917,20848.0,20847.0,0.04112842]
[1673725888495,0.78763645,20848.0,20847.0,0.04112842]
[1673725889270,1.81176737,20848.0,20847.0,0.04112842]
[1673725889547,2.19356448,20848.0,20847.0,0.04112842]
[1673725889809,1.609324,20848.0,20847.0,0.04112842]
[1673725890120,1.84579137,20848.0,20847.0,0.04112842]
[1673725892518,1.609324,20848.0,20847.0,0.04112842]
[1673725893310,4.16155174,20848.0,20847.0,0.04112842]
[1673725893564,3.71711326,20848.0,20846.0,0.0031775]
[1673725893821,2.0168938,20847.0,20846.0,0.0031775]
[1673725894158,2.9762638,20847.0,20846.0,0.0031775]
[1673725894344,2.54563054,20847.0,20846.0,0.0031775]
[1673725894585,2.6277371,20847.0,20846.0,0.0031775]
[1673725895094,2.84552099,20847.0,20846.0,0.0031775]
[1673725895344,3.1890344,20847.0,20846.0,0.0031775]
[1673725896683,3.4890344,20847.0,20846.0,0.0031775]
[1673725897943,3.05841443,20847.0,20846.0,0.0031775]
[1673725898200,3.4890344,20847.0,20846.0,0.0031775]
[1673725898742,3.22125051,20847.0,20846.0,0.0031775]
[1673725901949,2.92105039,20847.0,20846.0,0.0031775]
[1673725902167,3.18357635,20847.0,20846.0,0.0031775]
[1673725902418,3.29767635,20847.0,20846.0,0.0031775]
[1673725902688,3.29767635,20847.0,20846.0,0.00213206]
[1673725902689,3.7823829,20847.0,20846.0,0.00213206]
[1673725902921,3.73042954,20847.0,20846.0,0.00213206]
[1673725903429,3.73042954,20847.0,20846.0,0.00190716]
[1673725903943,3.6823829,20847.0,20846.0,0.00190716]
[1673725904505,3.73042954,20847.0,20846.0,0.00190716]
[1673725904964,3.62236969,20847.0,20846.0,0.00190716]
[1673725906473,3.23766314,20847.0,20846.0,0.00190716]
[1673725906737,3.72111563,20847.0,20846.0,0.00190716]
[1673725907014,0.1,20846.0,20841.0,0.00301693]
[1673725907279,0.49538344,20842.0,20841.0,0.00301693]
[1673725907528,2.90879877,20842.0,20841.0,0.00301693]
[1673725907824,3.04042001,20842.0,20841.0,0.00301693]
[1673725908094,3.39042001,20842.0,20841.0,0.00301693]
[1673725909626,2.7960353,20842.0,20841.0,0.00301693]
[1673725909879,2.7960353,20842.0,20839.0,0.00695647]
[1673725909880,3.9682482,20842.0,20839.0,0.00695647]
[1673725910139,0.115,20840.0,20839.0,0.00695647]
[1673725910396,3.53685931,20840.0,20838.0,0.00376318]
[1673725910646,1.73357664,20839.0,20838.0,6.318e-05]
[1673725910877,0.1,20838.0,20837.0,0.00335751]
[1673725911176,1.92054798,20838.0,20837.0,0.00335751]
[1673725911425,0.1,20837.0,20829.0,0.29728995]
[1673725911676,0.115,20832.0,20830.0,0.2922655]
[1673725911934,1.87435978,20831.0,20830.0,0.2922655]
[1673725912440,1.87435978,20831.0,20830.0,0.23868307]
[1673725912695,1.87435978,20831.0,20824.0,2.127101]
[1673725912696,0.91425378,20831.0,20825.0,0.7]
[1673725912946,0.91425378,20831.0,20826.0,0.960314]
[1673725913191,0.91425378,20831.0,20827.0,0.419957]
[1673725913435,0.91425378,20831.0,20828.0,0.203876]
[1673725913678,0.91425378,20831.0,20829.0,0.800024]
[1673725913935,0.91425378,20831.0,20830.0,0.203855]
[1673725913936,1.26425378,20831.0,20830.0,0.203855]
[1673725914694,1.26425378,20831.0,20829.0,0.480099]
[1673725914948,0.91425378,20831.0,20829.0,0.480099]
[1673725915198,0.91425378,20831.0,20830.0,0.319957]
[1673725915460,0.91425378,20831.0,20830.0,0.55751801]
[1673725915981,1.26425378,20831.0,20830.0,0.2136901]
[1673725916232,0.50808975,20831.0,20830.0,1.394409]
[1673725917022,0.15808975,20831.0,20830.0,1.61300998]
[1673725918031,0.15808975,20831.0,20830.0,1.394409]
[1673725918292,0.15808975,20831.0,20830.0,1.61973389]
[1673725920328,0.15808975,20831.0,20830.0,1.50543389]
[1673725922074,0.50808975,20831.0,20830.0,1.50543389]
[1673725923075,0.15808975,20831.0,20830.0,1.50543389]
[1673725923604,0.35,20832.0,20830.0,1.50543389]
[1673725923861,0.35,20832.0,20831.0,0.203795]
[1673725924110,0.75033665,20834.0,20830.0,1.18545989]
[1673725924378,0.75033665,20834.0,20830.0,1.37618584]
[1673725924968,0.35,20831.0,20830.0,1.37618584]
[1673725925152,0.35,20831.0,20830.0,1.18545989]
[1673725925404,0.35,20831.0,20830.0,1.50541689]
[1673725925900,0.35,20832.0,20830.0,1.50541689]
[1673725926150,0.35,20832.0,20831.0,0.203795]
[1673725926409,0.35,20832.0,20831.0,0.480053]
[1673725926675,0.65059377,20832.0,20830.0,0.70538389]
[1673725927939,0.65059377,20832.0,20830.0,0.22532489]
[1673725928415,1.13062477,20832.0,20830.0,0.22532489]
[1673725928707,1.13062477,20832.0,20829.0,0.480084]
[1673725928971,0.35,20831.0,20829.0,0.74687791]
[1673725929521,0.35,20831.0,20828.0,1.952614]
[1673725929522,0.39865365,20831.0,20828.0,0.115]
[1673725929749,1.31011,20831.0,20826.0,0.22747451]
[1673725930034,1.56406117,20831.0,20826.0,0.22747451]
[1673725930260,1.56406117,20831.0,20827.0,0.22252807]
[1673725930508,1.56503299,20831.0,20826.0,0.19072595]
[1673725930762,0.2159876,20830.0,20826.0,0.43966447]
[1673725931020,0.35,20828.0,20826.0,0.24893852]
[1673725931263,0.830133,20828.0,20826.0,0.24893852]
[1673725931523,1.310255,20828.0,20826.0,0.24893852]
[1673725931802,1.310255,20828.0,20824.0,1.17710489]
[1673725932065,1.310255,20828.0,20824.0,0.28550489]
[1673725932315,1.425255,20828.0,20822.0,0.225215]
[1673725932616,1.905377,20828.0,20822.0,0.225215]
[1673725932833,2.21373835,20828.0,20822.0,0.225215]
[1673725933096,0.1,20827.0,20822.0,0.19072595]
[1673725933389,1.44054,20826.0,20821.0,0.95918138]
[1673725933607,1.44054,20826.0,20821.0,1.18329586]
[1673725933858,0.35,20823.0,20821.0,1.18329586]
[1673725934108,0.830255,20823.0,20821.0,0.23109586]
[1673725934608,0.830255,20823.0,20821.0,0.00698138]
[1673725935627,0.28916842,20822.0,20821.0,0.00698138]
[1673725935885,1.59969042,20822.0,20821.0,0.00698138]
[1673725936638,1.59969042,20822.0,20821.0,0.00691939]
[1673725937666,1.310522,20822.0,20821.0,0.00691939]
[1673725937927,1.52641557,20822.0,20821.0,0.00691939]